[Event "Titled Tuesday Blitz April 26 Late 2022"]
[White "Szalay, Karoly"]
[Black "Harish, Neeraj"]
[WhiteFideId "2600544"]
[BlackFideId "30958130"]
[WhiteElo "2431"]
[BlackElo "1574"]
[Result "1-0"]
[Round "02"]
[TimeControl "180+1"]
[Date "2022.04.26"]
[WhiteClock "0:02:00"]
[BlackClock "0:00:19"]

1. e4 {[%clk 0:03:00]}  c5 {[%clk 0:02:57]} 2. Nf3 {[%clk 0:02:58]}  d6 {[%clk 0:02:55]} 3. d4 {[%clk 0:02:45]}  cxd4 {[%clk 0:02:54]} 4. Nxd4 {[%clk 0:02:46]}  Nf6 {[%clk 0:02:54]} 5. Nc3 {[%clk 0:02:45]}  g6 {[%clk 0:02:50]} 6. Bc4 {[%clk 0:02:44]}  Bg7 {[%clk 0:02:48]} 7. Be3 {[%clk 0:02:44]}  O-O {[%clk 0:02:46]} 8. f3 {[%clk 0:02:44]}  Nc6 {[%clk 0:02:46]} 9. Qd2 {[%clk 0:02:44]}  Bd7 {[%clk 0:02:45]} 10. O-O-O {[%clk 0:02:44]}  Rc8 {[%clk 0:02:09]} 11. Bb3 {[%clk 0:02:43]}  Nxd4 {[%clk 0:02:08]} 12. Bxd4 {[%clk 0:02:43]}  b5 {[%clk 0:02:08]} 13. Bxa7 {[%clk 0:02:43]}  b4 {[%clk 0:01:58]} 14. Nd5 {[%clk 0:02:43]}  Nxd5 {[%clk 0:01:58]} 15. exd5 {[%clk 0:02:40]}  Qa5 {[%clk 0:01:47]} 16. Bd4 {[%clk 0:02:40]}  Ba4 {[%clk 0:01:44]} 17. Qe3 {[%clk 0:02:28]}  Bxb3 {[%clk 0:01:15]} 18. Qxb3 {[%clk 0:02:29]}  Bh6+ {[%clk 0:01:13]} 19. Kb1 {[%clk 0:02:27]}  Ra8 {[%clk 0:01:12]} 20. h4 {[%clk 0:02:27]}  Rfc8 {[%clk 0:01:07]} 21. h5 {[%clk 0:02:27]}  g5 {[%clk 0:00:49]} 22. Rhe1 {[%clk 0:02:24]}  Bf8 {[%clk 0:00:44]} 23. g4 {[%clk 0:02:16]}  h6 {[%clk 0:00:42]} 24. Re4 {[%clk 0:02:15]}  Ra6 {[%clk 0:00:22]} 25. c3 {[%clk 0:01:59]}  bxc3 {[%clk 0:00:20]} 26. Bxc3 {[%clk 0:02:00]}  Rxc3 {[%clk 0:00:19]} 27. bxc3 {[%clk 0:01:59]}  Rb6 {[%clk 0:00:19]} 28. Rb4 {[%clk 0:02:00]} 1-0


[Site "https://www.chess.com"]

[Event "Titled Tuesday Blitz April 26 Late 2022"]
[White "Taichman, Ori"]
[Black "Safarli, Eltaj"]
[WhiteFideId "2804069"]
[BlackFideId "13402129"]
[WhiteElo "2227"]
[BlackElo "2634"]
[Result "1-0"]
[Round "02"]
[TimeControl "180+1"]
[Date "2022.04.26"]
[WhiteClock "0:00:14"]
[BlackClock "0:00:06"]

1. e4 {[%clk 0:03:00]}  e5 {[%clk 0:02:56]} 2. d4 {[%clk 0:03:00]}  exd4 {[%clk 0:02:54]} 3. Qxd4 {[%clk 0:03:01]}  Nc6 {[%clk 0:02:54]} 4. Qe3 {[%clk 0:03:01]}  b6 {[%clk 0:02:44]} 5. Nc3 {[%clk 0:03:01]}  Bc5 {[%clk 0:02:43]} 6. Qg3 {[%clk 0:03:01]}  Bd4 {[%clk 0:02:40]} 7. Nge2 {[%clk 0:02:43]}  Be5 {[%clk 0:02:35]} 8. f4 {[%clk 0:02:43]}  Bf6 {[%clk 0:02:35]} 9. h4 {[%clk 0:02:32]}  d6 {[%clk 0:02:34]} 10. h5 {[%clk 0:02:30]}  Nh6 {[%clk 0:02:33]} 11. Bd2 {[%clk 0:02:12]}  O-O {[%clk 0:02:33]} 12. O-O-O {[%clk 0:02:12]}  Bg4 {[%clk 0:02:28]} 13. Nd5 {[%clk 0:02:04]}  Be7 {[%clk 0:02:07]} 14. Qc3 {[%clk 0:01:38]}  Bd7 {[%clk 0:01:57]} 15. g4 {[%clk 0:01:23]}  f6 {[%clk 0:01:36]} 16. Rg1 {[%clk 0:01:06]}  Nf7 {[%clk 0:01:22]} 17. Ng3 {[%clk 0:00:47]}  Re8 {[%clk 0:01:06]} 18. h6 {[%clk 0:00:25]}  Nxh6 {[%clk 0:01:00]} 19. g5 {[%clk 0:00:23]}  fxg5 {[%clk 0:00:57]} 20. Nh5 {[%clk 0:00:23]}  Bf8 {[%clk 0:00:39]} 21. fxg5 {[%clk 0:00:18]}  Ng4 {[%clk 0:00:30]} 22. Rxg4 {[%clk 0:00:16]}  Bxg4 {[%clk 0:00:31]} 23. Nhf6+ {[%clk 0:00:16]}  Kh8 {[%clk 0:00:20]} 24. Nxg4 {[%clk 0:00:16]}  Ne5 {[%clk 0:00:20]} 25. Nxe5 {[%clk 0:00:14]}  Rxe5 {[%clk 0:00:21]} 26. Bd3 {[%clk 0:00:14]}  c6 {[%clk 0:00:19]} 27. Qxc6 {[%clk 0:00:08]}  Rc8 {[%clk 0:00:19]} 28. Qb7 {[%clk 0:00:07]}  Be7 {[%clk 0:00:18]} 29. Bc3 {[%clk 0:00:06]}  Bxg5+ {[%clk 0:00:15]} 30. Kb1 {[%clk 0:00:07]}  Rb8 {[%clk 0:00:14]} 31. Qxa7 {[%clk 0:00:05]}  Ra8 {[%clk 0:00:15]} 32. Qxb6 {[%clk 0:00:04]}  Re8 {[%clk 0:00:09]} 33. Qd4 {[%clk 0:00:02]}  Bh6 {[%clk 0:00:07]} 34. Rg1 {[%clk 0:00:03]}  Rg8 {[%clk 0:00:04]} 35. a3 {[%clk 0:00:04]}  Qd7 {[%clk 0:00:04]} 36. e5 {[%clk 0:00:04]}  dxe5 {[%clk 0:00:04]} 37. Qe4 {[%clk 0:00:05]}  g6 {[%clk 0:00:03]} 38. Bxe5+ {[%clk 0:00:05]}  Bg7 {[%clk 0:00:03]} 39. Nf6 {[%clk 0:00:06]}  Qe6 {[%clk 0:00:02]} 40. Nxg8 {[%clk 0:00:06]}  Bxe5 {[%clk 0:00:02]} 41. Nh6 {[%clk 0:00:06]}  Rb8 {[%clk 0:00:02]} 42. Qxe5+ {[%clk 0:00:06]}  Qxe5 {[%clk 0:00:02]} 43. Nf7+ {[%clk 0:00:06]}  Kg7 {[%clk 0:00:02]} 44. Nxe5 {[%clk 0:00:07]}  Re8 {[%clk 0:00:02]} 45. Nxg6 {[%clk 0:00:08]}  hxg6 {[%clk 0:00:02]} 46. Rxg6+ {[%clk 0:00:09]}  Kf7 {[%clk 0:00:03]} 47. Rb6 {[%clk 0:00:09]}  Rd8 {[%clk 0:00:03]} 48. Rb3 {[%clk 0:00:10]}  Rc8 {[%clk 0:00:03]} 49. Ka2 {[%clk 0:00:11]}  Ke6 {[%clk 0:00:03]} 50. a4 {[%clk 0:00:12]}  Kd6 {[%clk 0:00:03]} 51. Ra3 {[%clk 0:00:12]}  Ra8 {[%clk 0:00:04]} 52. a5 {[%clk 0:00:13]}  Kc5 {[%clk 0:00:05]} 53. a6 {[%clk 0:00:13]}  Kb4 {[%clk 0:00:06]} 54. a7 {[%clk 0:00:13]}  Kc5 {[%clk 0:00:06]} 55. Be4 {[%clk 0:00:14]} 1-0


[Site "https://www.chess.com"]

[Event "Titled Tuesday Blitz April 26 Late 2022"]
[White "Tanenbaum, Zachary"]
[Black "Vachier-Lagrave, Maxime"]
[WhiteFideId "2060850"]
[BlackFideId "623539"]
[WhiteElo "2168"]
[BlackElo "2813"]
[Result "0-1"]
[Round "02"]
[TimeControl "180+1"]
[Date "2022.04.26"]
[WhiteClock "0:00:12"]
[BlackClock "0:01:14"]

1. e4 {[%clk 0:02:59]}  c6 {[%clk 0:02:59]} 2. d4 {[%clk 0:02:59]}  d5 {[%clk 0:02:56]} 3. exd5 {[%clk 0:03:00]}  cxd5 {[%clk 0:02:56]} 4. Bd3 {[%clk 0:03:00]}  Nc6 {[%clk 0:02:56]} 5. c3 {[%clk 0:03:01]}  Nf6 {[%clk 0:02:54]} 6. Bf4 {[%clk 0:03:01]}  Bg4 {[%clk 0:02:53]} 7. Qb3 {[%clk 0:03:01]}  Qb6 {[%clk 0:02:54]} 8. Nd2 {[%clk 0:03:01]}  e6 {[%clk 0:02:54]} 9. Ngf3 {[%clk 0:03:01]}  Nd7 {[%clk 0:02:50]} 10. O-O {[%clk 0:02:58]}  Be7 {[%clk 0:02:49]} 11. Qc2 {[%clk 0:02:50]}  Bh5 {[%clk 0:02:47]} 12. Rfe1 {[%clk 0:02:39]}  Rc8 {[%clk 0:02:46]} 13. Qb3 {[%clk 0:02:34]}  Bg6 {[%clk 0:02:44]} 14. Bxg6 {[%clk 0:02:29]}  hxg6 {[%clk 0:02:45]} 15. h3 {[%clk 0:02:28]}  Qa6 {[%clk 0:02:41]} 16. a4 {[%clk 0:02:16]}  O-O {[%clk 0:02:27]} 17. Qb5 {[%clk 0:01:54]}  Qb6 {[%clk 0:02:19]} 18. Qxb6 {[%clk 0:01:48]}  Nxb6 {[%clk 0:02:16]} 19. Ne5 {[%clk 0:01:47]}  a5 {[%clk 0:02:09]} 20. Ndf3 {[%clk 0:01:37]}  Rfe8 {[%clk 0:02:03]} 21. Re2 {[%clk 0:01:28]}  Nxe5 {[%clk 0:01:47]} 22. Nxe5 {[%clk 0:01:28]}  g5 {[%clk 0:01:47]} 23. Bg3 {[%clk 0:01:25]}  f6 {[%clk 0:01:47]} 24. Nd3 {[%clk 0:01:24]}  Kf7 {[%clk 0:01:47]} 25. f3 {[%clk 0:01:11]}  Bf8 {[%clk 0:01:41]} 26. Kf2 {[%clk 0:01:09]}  Rc4 {[%clk 0:01:41]} 27. Rd2 {[%clk 0:00:34]}  Rxa4 {[%clk 0:01:38]} 28. Rxa4 {[%clk 0:00:33]}  Nxa4 {[%clk 0:01:39]} 29. Bc7 {[%clk 0:00:33]}  b6 {[%clk 0:01:31]} 30. Rd1 {[%clk 0:00:32]}  Rc8 {[%clk 0:01:27]} 31. Bg3 {[%clk 0:00:24]}  b5 {[%clk 0:01:27]} 32. Ra1 {[%clk 0:00:21]}  Be7 {[%clk 0:01:26]} 33. Ke2 {[%clk 0:00:18]}  Ra8 {[%clk 0:01:21]} 34. Be1 {[%clk 0:00:17]}  Nb6 {[%clk 0:01:20]} 35. Nc5 {[%clk 0:00:15]}  a4 {[%clk 0:01:19]} 36. Kd3 {[%clk 0:00:14]}  Rc8 {[%clk 0:01:16]} 37. Na6 {[%clk 0:00:14]}  Nc4 {[%clk 0:01:16]} 38. b3 {[%clk 0:00:12]}  axb3 {[%clk 0:01:15]} 39. Rb1 {[%clk 0:00:13]}  b2 {[%clk 0:01:14]} 40. Bd2 {[%clk 0:00:13]}  Ra8 {[%clk 0:01:13]} 41. Nc7 {[%clk 0:00:13]}  Ra1 {[%clk 0:01:13]} 42. Kc2 {[%clk 0:00:12]}  Na3+ {[%clk 0:01:14]} 0-1


[Site "https://www.chess.com"]

[Event "Titled Tuesday Blitz April 26 Late 2022"]
[White "Tang, Andrew"]
[Black "Mortazavi, Ali"]
[WhiteFideId "2059630"]
[BlackFideId "401323"]
[WhiteElo "2584"]
[BlackElo "2339"]
[Result "1-0"]
[Round "02"]
[TimeControl "180+1"]
[Date "2022.04.26"]
[WhiteClock "0:02:12"]
[BlackClock "0:01:48"]

1. d4 {[%clk 0:03:00]}  Nf6 {[%clk 0:02:59]} 2. c4 {[%clk 0:03:00]}  g6 {[%clk 0:02:59]} 3. f3 {[%clk 0:02:59]}  Bg7 {[%clk 0:03:00]} 4. e4 {[%clk 0:03:00]}  O-O {[%clk 0:03:01]} 5. Nc3 {[%clk 0:03:00]}  d6 {[%clk 0:03:02]} 6. Nge2 {[%clk 0:03:01]}  a6 {[%clk 0:03:02]} 7. Bg5 {[%clk 0:03:01]}  Nbd7 {[%clk 0:03:00]} 8. Qd2 {[%clk 0:03:01]}  c6 {[%clk 0:02:59]} 9. h4 {[%clk 0:02:59]}  h5 {[%clk 0:02:57]} 10. Ng3 {[%clk 0:02:57]}  b5 {[%clk 0:02:49]} 11. Bh6 {[%clk 0:02:56]}  bxc4 {[%clk 0:02:37]} 12. Bxc4 {[%clk 0:02:55]}  d5 {[%clk 0:02:37]} 13. Bb3 {[%clk 0:02:55]}  dxe4 {[%clk 0:02:34]} 14. Qg5 {[%clk 0:02:51]}  e6 {[%clk 0:02:08]} 15. Bxg7 {[%clk 0:02:51]}  Kxg7 {[%clk 0:02:08]} 16. fxe4 {[%clk 0:02:51]}  Rh8 {[%clk 0:01:48]} 17. O-O {[%clk 0:02:13]}  Ng4 {[%clk 0:01:48]} 18. Nxh5+ {[%clk 0:02:12]}  Rxh5 {[%clk 0:01:48]} 19. Qxd8 {[%clk 0:02:12]} 1-0


[Site "https://www.chess.com"]

[Event "Titled Tuesday Blitz April 26 Late 2022"]
[White "Toncheva, Nadya"]
[Black "Licznerski, Lukasz"]
[WhiteFideId "2924056"]
[BlackFideId "1179250"]
[WhiteElo "1884"]
[BlackElo "2422"]
[Result "1-0"]
[Round "02"]
[TimeControl "180+1"]
[Date "2022.04.26"]
[WhiteClock "0:00:04"]
[BlackClock "0:00:03"]

1. e4 {[%clk 0:03:00]}  c6 {[%clk 0:02:59]} 2. d4 {[%clk 0:03:00]}  d5 {[%clk 0:03:00]} 3. Nc3 {[%clk 0:03:01]}  dxe4 {[%clk 0:03:00]} 4. Nxe4 {[%clk 0:03:02]}  Nd7 {[%clk 0:03:01]} 5. Nf3 {[%clk 0:03:01]}  Ngf6 {[%clk 0:03:01]} 6. Ng3 {[%clk 0:03:01]}  e6 {[%clk 0:03:01]} 7. Bd3 {[%clk 0:03:01]}  c5 {[%clk 0:03:02]} 8. Qe2 {[%clk 0:02:46]}  cxd4 {[%clk 0:02:55]} 9. Nxd4 {[%clk 0:02:42]}  Bc5 {[%clk 0:02:56]} 10. Nb3 {[%clk 0:02:31]}  Bb6 {[%clk 0:02:40]} 11. O-O {[%clk 0:02:31]}  O-O {[%clk 0:02:36]} 12. Ne4 {[%clk 0:02:30]}  Nxe4 {[%clk 0:01:23]} 13. Qxe4 {[%clk 0:02:28]}  Nf6 {[%clk 0:01:24]} 14. Qh4 {[%clk 0:02:27]}  Qe7 {[%clk 0:01:24]} 15. Bxh7+ {[%clk 0:02:16]}  Kh8 {[%clk 0:01:24]} 16. Bd3+ {[%clk 0:02:07]}  Kg8 {[%clk 0:01:23]} 17. Bg5 {[%clk 0:02:07]}  Rd8 {[%clk 0:01:22]} 18. Rad1 {[%clk 0:01:59]}  Bd7 {[%clk 0:01:22]} 19. Rfe1 {[%clk 0:01:51]}  Bc6 {[%clk 0:01:19]} 20. Nd2 {[%clk 0:00:45]}  Rd4 {[%clk 0:01:15]} 21. Qh3 {[%clk 0:00:30]}  Rad8 {[%clk 0:01:10]} 22. Nc4 {[%clk 0:00:22]}  Rxc4 {[%clk 0:00:32]} 23. Bxc4 {[%clk 0:00:20]}  Rxd1 {[%clk 0:00:33]} 24. Rxd1 {[%clk 0:00:19]}  Qc5 {[%clk 0:00:33]} 25. Bxf6 {[%clk 0:00:11]}  Qxf2+ {[%clk 0:00:33]} 26. Kh1 {[%clk 0:00:09]}  Qxf6 {[%clk 0:00:30]} 27. Bd3 {[%clk 0:00:08]}  g6 {[%clk 0:00:27]} 28. Rf1 {[%clk 0:00:07]}  Qg5 {[%clk 0:00:20]} 29. Qg3 {[%clk 0:00:04]}  Qh5 {[%clk 0:00:12]} 30. Qf4 {[%clk 0:00:02]}  g5 {[%clk 0:00:07]} 31. Qb8+ {[%clk 0:00:01]}  Kg7 {[%clk 0:00:07]} 32. Qe5+ {[%clk 0:00:02]}  Kg8 {[%clk 0:00:07]} 33. Qg3 {[%clk 0:00:02]}  Bd4 {[%clk 0:00:02]} 34. c3 {[%clk 0:00:02]}  Bg7 {[%clk 0:00:02]} 35. Bc2 {[%clk 0:00:02]}  Bf8 {[%clk 0:00:03]} 36. Bd1 {[%clk 0:00:03]}  Qh6 {[%clk 0:00:03]} 37. Bf3 {[%clk 0:00:04]}  Bb5 {[%clk 0:00:03]} 38. Rf2 {[%clk 0:00:04]}  Bc5 {[%clk 0:00:02]} 39. Rd2 {[%clk 0:00:04]}  Kg7 {[%clk 0:00:02]} 40. Qe5+ {[%clk 0:00:04]}  Qf6 {[%clk 0:00:03]} 41. Qxc5 {[%clk 0:00:05]}  Qf4 {[%clk 0:00:03]} 42. Qf2 {[%clk 0:00:05]}  g4 {[%clk 0:00:03]} 43. Bd1 {[%clk 0:00:06]}  Qg5 {[%clk 0:00:02]} 44. Qd4+ {[%clk 0:00:06]}  e5 {[%clk 0:00:02]} 45. Qf2 {[%clk 0:00:06]}  Bc6 {[%clk 0:00:02]} 46. Re2 {[%clk 0:00:05]}  f6 {[%clk 0:00:01]} 47. Bc2 {[%clk 0:00:04]}  Qc1+ {[%clk 0:00:02]} 48. Re1 {[%clk 0:00:05]}  Qg5 {[%clk 0:00:02]} 49. Be4 {[%clk 0:00:05]}  Bb5 {[%clk 0:00:02]} 50. b3 {[%clk 0:00:05]}  Bd7 {[%clk 0:00:02]} 51. c4 {[%clk 0:00:05]}  Be6 {[%clk 0:00:02]} 52. Bxb7 {[%clk 0:00:05]}  Bc8 {[%clk 0:00:03]} 53. Be4 {[%clk 0:00:05]}  f5 {[%clk 0:00:03]} 54. Qxa7+ {[%clk 0:00:05]}  Kh6 {[%clk 0:00:03]} 55. Bb7 {[%clk 0:00:05]}  Be6 {[%clk 0:00:02]} 56. Qb6 {[%clk 0:00:05]}  Qf6 {[%clk 0:00:03]} 57. Bd5 {[%clk 0:00:04]} 1-0


[Site "https://www.chess.com"]

[Event "Titled Tuesday Blitz April 26 Late 2022"]
[White "Toniutti, Ezio"]
[Black "Paravyan, David"]
[WhiteFideId "113034"]
[BlackFideId "4194985"]
[WhiteElo "2215"]
[BlackElo "2569"]
[Result "0-1"]
[Round "02"]
[TimeControl "180+1"]
[Date "2022.04.26"]
[WhiteClock "0:00:09"]
[BlackClock "0:00:21"]

1. d4 {[%clk 0:02:54]}  Nf6 {[%clk 0:02:59]} 2. c4 {[%clk 0:02:53]}  g6 {[%clk 0:03:00]} 3. Nc3 {[%clk 0:02:52]}  d5 {[%clk 0:03:00]} 4. Bg5 {[%clk 0:02:50]}  Ne4 {[%clk 0:03:00]} 5. Bh4 {[%clk 0:02:50]}  Nxc3 {[%clk 0:02:59]} 6. bxc3 {[%clk 0:02:51]}  c5 {[%clk 0:02:55]} 7. e3 {[%clk 0:02:51]}  Nc6 {[%clk 0:02:55]} 8. cxd5 {[%clk 0:02:51]}  Qxd5 {[%clk 0:02:56]} 9. Qf3 {[%clk 0:02:51]}  Qf5 {[%clk 0:02:45]} 10. Bb5 {[%clk 0:02:30]}  Bd7 {[%clk 0:02:44]} 11. Qxf5 {[%clk 0:02:24]}  gxf5 {[%clk 0:02:45]} 12. Nf3 {[%clk 0:02:19]}  e6 {[%clk 0:02:40]} 13. O-O {[%clk 0:02:16]}  Be7 {[%clk 0:02:32]} 14. Bg3 {[%clk 0:02:13]}  O-O {[%clk 0:02:31]} 15. Rfd1 {[%clk 0:02:13]}  Rfd8 {[%clk 0:02:25]} 16. Rab1 {[%clk 0:01:55]}  Rac8 {[%clk 0:02:24]} 17. Be2 {[%clk 0:01:45]}  Na5 {[%clk 0:02:23]} 18. Ne5 {[%clk 0:01:41]}  Be8 {[%clk 0:02:21]} 19. Bf3 {[%clk 0:01:35]}  b6 {[%clk 0:02:18]} 20. Be2 {[%clk 0:01:31]}  cxd4 {[%clk 0:02:17]} 21. cxd4 {[%clk 0:01:28]}  Rc2 {[%clk 0:02:18]} 22. Bf3 {[%clk 0:01:12]}  Rdc8 {[%clk 0:02:16]} 23. d5 {[%clk 0:01:09]}  exd5 {[%clk 0:01:49]} 24. Bxd5 {[%clk 0:01:08]}  Kg7 {[%clk 0:01:46]} 25. h4 {[%clk 0:00:52]}  Bf6 {[%clk 0:01:43]} 26. Nd3 {[%clk 0:00:37]}  Nc4 {[%clk 0:01:11]} 27. Nf4 {[%clk 0:00:35]}  Be7 {[%clk 0:01:11]} 28. Nh5+ {[%clk 0:00:29]}  Kf8 {[%clk 0:01:06]} 29. Bf4 {[%clk 0:00:23]}  Bxh4 {[%clk 0:00:48]} 30. g3 {[%clk 0:00:20]}  Be7 {[%clk 0:00:48]} 31. Bh6+ {[%clk 0:00:20]}  Kg8 {[%clk 0:00:48]} 32. Rd4 {[%clk 0:00:20]}  Ne5 {[%clk 0:00:45]} 33. Bf4 {[%clk 0:00:17]}  Ng4 {[%clk 0:00:39]} 34. Rf1 {[%clk 0:00:15]}  Nf6 {[%clk 0:00:26]} 35. Nxf6+ {[%clk 0:00:13]}  Bxf6 {[%clk 0:00:27]} 36. Rdd1 {[%clk 0:00:12]}  Kg7 {[%clk 0:00:27]} 37. Bb3 {[%clk 0:00:10]}  R2c5 {[%clk 0:00:20]} 38. Rd3 {[%clk 0:00:09]}  Bb5 {[%clk 0:00:21]} 39. Rd7 {[%clk 0:00:09]}  Bxd7 {[%clk 0:00:21]} 0-1


[Site "https://www.chess.com"]

[Event "Titled Tuesday Blitz April 26 Late 2022"]
[White "Torres Cueto, Jesus Marcial"]
[Black "Zumsande, Martin"]
[WhiteFideId "4415280"]
[BlackFideId "4651324"]
[WhiteElo "2055"]
[BlackElo "2368"]
[Result "0-1"]
[Round "02"]
[TimeControl "180+1"]
[Date "2022.04.26"]
[WhiteClock "0:01:33"]
[BlackClock "0:01:58"]

1. d4 {[%clk 0:02:33]}  d5 {[%clk 0:02:58]} 2. c4 {[%clk 0:02:19]}  e6 {[%clk 0:02:56]} 3. Nc3 {[%clk 0:02:19]}  Be7 {[%clk 0:02:55]} 4. Nf3 {[%clk 0:02:14]}  Nf6 {[%clk 0:02:55]} 5. Bg5 {[%clk 0:02:10]}  h6 {[%clk 0:02:54]} 6. Bh4 {[%clk 0:02:03]}  O-O {[%clk 0:02:54]} 7. e3 {[%clk 0:02:02]}  b6 {[%clk 0:02:53]} 8. cxd5 {[%clk 0:02:01]}  Nxd5 {[%clk 0:02:53]} 9. Bxe7 {[%clk 0:02:01]}  Qxe7 {[%clk 0:02:53]} 10. Bd3 {[%clk 0:02:01]}  Bb7 {[%clk 0:02:51]} 11. O-O {[%clk 0:02:00]}  Nd7 {[%clk 0:02:49]} 12. Rc1 {[%clk 0:01:50]}  c5 {[%clk 0:02:44]} 13. Bb1 {[%clk 0:01:42]}  Rfd8 {[%clk 0:02:37]} 14. Qe2 {[%clk 0:01:40]}  Rac8 {[%clk 0:02:32]} 15. Rfd1 {[%clk 0:01:33]}  Nxc3 {[%clk 0:02:18]} 16. bxc3 {[%clk 0:01:32]}  Nf6 {[%clk 0:02:12]} 17. e4 {[%clk 0:01:32]}  cxd4 {[%clk 0:02:10]} 18. cxd4 {[%clk 0:01:33]}  Rxc1 {[%clk 0:02:07]} 19. Rxc1 {[%clk 0:01:34]}  Qa3 {[%clk 0:01:59]} 20. e5 {[%clk 0:01:33]}  Qxc1+ {[%clk 0:01:58]} 0-1


[Site "https://www.chess.com"]

[Event "Titled Tuesday Blitz April 26 Late 2022"]
[White "Xiong, Jeffery"]
[Black "Shuvalova, Polina"]
[WhiteFideId "2047640"]
[BlackFideId "24171760"]
[WhiteElo "2727"]
[BlackElo "2355"]
[Result "1-0"]
[Round "02"]
[TimeControl "180+1"]
[Date "2022.04.26"]
[WhiteClock "0:01:37"]
[BlackClock "0:00:48"]

1. d4 {[%clk 0:03:00]}  Nf6 {[%clk 0:02:59]} 2. Bg5 {[%clk 0:03:00]}  e6 {[%clk 0:02:57]} 3. e4 {[%clk 0:03:00]}  h6 {[%clk 0:02:57]} 4. Bxf6 {[%clk 0:03:00]}  Qxf6 {[%clk 0:02:58]} 5. Nc3 {[%clk 0:03:01]}  Bb4 {[%clk 0:02:42]} 6. Qd3 {[%clk 0:02:58]}  d5 {[%clk 0:02:41]} 7. O-O-O {[%clk 0:02:55]}  O-O {[%clk 0:02:37]} 8. Kb1 {[%clk 0:02:52]}  Bxc3 {[%clk 0:02:35]} 9. Qxc3 {[%clk 0:02:52]}  dxe4 {[%clk 0:02:32]} 10. f3 {[%clk 0:02:48]}  e3 {[%clk 0:02:30]} 11. Qxe3 {[%clk 0:02:43]}  Nc6 {[%clk 0:02:25]} 12. Bc4 {[%clk 0:02:33]}  Bd7 {[%clk 0:02:14]} 13. Ne2 {[%clk 0:02:32]}  Rab8 {[%clk 0:02:05]} 14. Nc3 {[%clk 0:02:28]}  Rfd8 {[%clk 0:02:03]} 15. Rhe1 {[%clk 0:02:24]}  Ne7 {[%clk 0:01:51]} 16. d5 {[%clk 0:02:05]}  Nxd5 {[%clk 0:01:19]} 17. Bxd5 {[%clk 0:02:05]}  exd5 {[%clk 0:01:19]} 18. Nxd5 {[%clk 0:02:06]}  Qg5 {[%clk 0:01:11]} 19. f4 {[%clk 0:02:06]}  Qh5 {[%clk 0:01:01]} 20. Qe7 {[%clk 0:02:00]}  Be6 {[%clk 0:00:55]} 21. Nf6+ {[%clk 0:02:00]}  gxf6 {[%clk 0:00:53]} 22. Rxd8+ {[%clk 0:02:01]}  Rxd8 {[%clk 0:00:53]} 23. Qxd8+ {[%clk 0:02:02]}  Kg7 {[%clk 0:00:54]} 24. Qxc7 {[%clk 0:02:03]}  Qd5 {[%clk 0:00:52]} 25. b3 {[%clk 0:02:01]}  Qxg2 {[%clk 0:00:52]} 26. Rxe6 {[%clk 0:01:52]}  Qg1+ {[%clk 0:00:52]} 27. Kb2 {[%clk 0:01:53]}  Qd4+ {[%clk 0:00:52]} 28. Ka3 {[%clk 0:01:53]}  a5 {[%clk 0:00:48]} 29. Rb6 {[%clk 0:01:37]} 1-0


[Site "https://www.chess.com"]

[Event "Titled Tuesday Blitz April 26 Late 2022"]
[White "Xu, Yi"]
[Black "Vovk, Orest"]
[WhiteFideId "8605564"]
[BlackFideId "14113490"]
[WhiteElo "2471"]
[BlackElo "2203"]
[Result "1-0"]
[Round "02"]
[TimeControl "180+1"]
[Date "2022.04.26"]
[WhiteClock "0:00:36"]
[BlackClock "0:00:22"]

1. e4 {[%clk 0:03:00]}  d6 {[%clk 0:02:58]} 2. d4 {[%clk 0:03:00]}  Nd7 {[%clk 0:02:59]} 3. Nc3 {[%clk 0:03:00]}  e5 {[%clk 0:02:56]} 4. Nf3 {[%clk 0:03:00]}  Ngf6 {[%clk 0:02:49]} 5. Bc4 {[%clk 0:02:59]}  h6 {[%clk 0:02:44]} 6. O-O {[%clk 0:02:55]}  Be7 {[%clk 0:02:45]} 7. Re1 {[%clk 0:02:55]}  O-O {[%clk 0:02:41]} 8. h3 {[%clk 0:02:54]}  exd4 {[%clk 0:02:22]} 9. Qxd4 {[%clk 0:02:47]}  Nc5 {[%clk 0:02:20]} 10. Be3 {[%clk 0:02:33]}  Be6 {[%clk 0:02:19]} 11. Rad1 {[%clk 0:02:31]}  Bxc4 {[%clk 0:02:15]} 12. Qxc4 {[%clk 0:02:31]}  Nfd7 {[%clk 0:02:15]} 13. e5 {[%clk 0:02:17]}  Nb6 {[%clk 0:02:15]} 14. Qg4 {[%clk 0:02:12]}  Qc8 {[%clk 0:02:11]} 15. Qg3 {[%clk 0:02:00]}  Kh8 {[%clk 0:02:00]} 16. Bf4 {[%clk 0:01:54]}  Nc4 {[%clk 0:01:29]} 17. Nd5 {[%clk 0:01:54]}  Bd8 {[%clk 0:01:22]} 18. exd6 {[%clk 0:01:40]}  Nxd6 {[%clk 0:01:16]} 19. Bxd6 {[%clk 0:01:25]}  cxd6 {[%clk 0:01:17]} 20. Qxd6 {[%clk 0:01:25]}  Bb6 {[%clk 0:01:16]} 21. Nxb6 {[%clk 0:01:18]}  axb6 {[%clk 0:01:16]} 22. a3 {[%clk 0:01:12]}  Ne6 {[%clk 0:01:13]} 23. c3 {[%clk 0:01:06]}  Qc5 {[%clk 0:01:06]} 24. Ne5 {[%clk 0:01:05]}  Rad8 {[%clk 0:00:46]} 25. Qxc5 {[%clk 0:01:05]}  bxc5 {[%clk 0:00:43]} 26. Rxd8 {[%clk 0:01:05]}  Nxd8 {[%clk 0:00:43]} 27. Nd7 {[%clk 0:01:05]}  Rg8 {[%clk 0:00:39]} 28. Nxc5 {[%clk 0:01:05]}  b6 {[%clk 0:00:39]} 29. Nd7 {[%clk 0:01:01]}  Ne6 {[%clk 0:00:38]} 30. Nxb6 {[%clk 0:01:00]}  Rb8 {[%clk 0:00:37]} 31. Nc4 {[%clk 0:01:00]}  Nc5 {[%clk 0:00:37]} 32. b4 {[%clk 0:00:50]}  Na4 {[%clk 0:00:35]} 33. Nd6 {[%clk 0:00:50]}  Nxc3 {[%clk 0:00:32]} 34. Nxf7+ {[%clk 0:00:47]}  Kg8 {[%clk 0:00:32]} 35. Nd6 {[%clk 0:00:47]}  Ra8 {[%clk 0:00:31]} 36. Re8+ {[%clk 0:00:46]}  Rxe8 {[%clk 0:00:30]} 37. Nxe8 {[%clk 0:00:47]}  Kf7 {[%clk 0:00:31]} 38. Nd6+ {[%clk 0:00:43]}  Ke6 {[%clk 0:00:32]} 39. Nc4 {[%clk 0:00:41]}  Kd5 {[%clk 0:00:31]} 40. Ne3+ {[%clk 0:00:41]}  Kc6 {[%clk 0:00:30]} 41. Nf5 {[%clk 0:00:40]}  Nb1 {[%clk 0:00:22]} 42. a4 {[%clk 0:00:40]}  Nc3 {[%clk 0:00:21]} 43. a5 {[%clk 0:00:39]}  Nd5 {[%clk 0:00:21]} 44. Nxg7 {[%clk 0:00:39]}  Nxb4 {[%clk 0:00:20]} 45. Nf5 {[%clk 0:00:39]}  Kb5 {[%clk 0:00:19]} 46. Nxh6 {[%clk 0:00:39]}  Kxa5 {[%clk 0:00:20]} 47. g4 {[%clk 0:00:40]}  Kb6 {[%clk 0:00:21]} 48. Kg2 {[%clk 0:00:40]}  Kc6 {[%clk 0:00:22]} 49. Kg3 {[%clk 0:00:41]}  Kd6 {[%clk 0:00:22]} 50. f4 {[%clk 0:00:41]}  Ke6 {[%clk 0:00:23]} 51. f5+ {[%clk 0:00:42]}  Kf6 {[%clk 0:00:23]} 52. Kh4 {[%clk 0:00:41]}  Nd5 {[%clk 0:00:23]} 53. g5+ {[%clk 0:00:41]}  Kg7 {[%clk 0:00:24]} 54. Ng4 {[%clk 0:00:36]}  Ne3 {[%clk 0:00:22]} 55. Nxe3 {[%clk 0:00:36]} 1-0


[Site "https://www.chess.com"]